{"text_format":"3","workbook":"xlsx","n_sheets":3,"sheets":["1 Bid Title","Pricing schedule","Abbreviations"],"not_rendered":{"images":3,"defined_names":1},"read":"whole","date_system":"1900"}

{"sheet":"1 Bid Title","index":0,"n_rows":28,"n_cols":1,"rows_kept":28}
{"$rows_empty":9}
["ANNEXURE B                                        PRICING SCHEDULE"]
[]
[]
[]
[]
["BID NUMBER : RT59-1-2026"]
[]
[]
[]
[]
["SUPPLY AND DELIVERY FOOTWEAR AND LEATHER PRODUCTS"]
[]
[]
["CLOSING DATE : 3 JULY 2026"]
[]
[]
["NATIONAL TREASURY "]
[]
["TRANSVERSAL CONTRACTING"]

{"sheet":"Pricing schedule","index":1,"n_rows":26,"n_cols":25,"rows_kept":26,"merged":[[0,0,0,13],[1,0,1,13]]}
["RT59-1-2026: SUPPLY AND DELIVERY OF FOOTWEAR AND LEATHER PRODUCTS TO THE STATE FOR THE PERIOD ENDING 31 MARCH 2029"]
["NOTES REGARDING PRICING:\n1. Bidders to complete the excel version. This is a compulsory requirements.\n2. Bidders must refer to item description and specifications before completing the pricing schedule.\n3. The quoted prices Must be inclusive of 15% VAT and all the other related costs (Direct and Indirect costs). No additional costs will considered post award.\n4. Brand Names, Delivery Lead Time (days), Minimum Order Quantity to be completed for all the items\n5. Prices, Delivery Lead Time (days) and Minimum Order Quantity MUST be completed for all the items offered.\n6. Percentage Weighted Contribution - List % weighting of each cost element\n7. Indices - List measurable indices/factors that contribute to cost escalation.\n8. All prices are subject to negotiation with shortlisted bidder prior to signing of the contract.\n9. Offer to be valid for 180 days from closing date of bid.\n10. Bidder to complete this spreadsheet from column K to column W for the items they are bidding"]
["ITEM CODE","CATEGORY","ITEM DESCRIPTION","SPECIFICATION REFERENCE NUMBER","TEST REPORT ","% LOCAL PRODUCTION MANUFACTURING","IMPORTED RAW MATERIAL","END-USER","ESTIMATED QUANTITIES (YEAR 1)","ESTIMATED QUANTITIES (YEAR 2)","ESTIMATED QUANTITIES (YEAR 3)","UNIT OF MEASURE","BIDDER'S NAME","PRICE PER UNIT INCLUSIVE OF 15% VAT","DELIVERY LEAD TIMES","MINIMUM ORDER QUANTITY","D1 – IMPORTED RAW MATERIAL / FINISHED PRODUCT","D2 - LOCAL RAW MATERIAL / FINISHED PRODUCTS (IF APPLICABLE)","D3 – LABOUR","D4 – TRANSPORT","D5 – OVERHEADS ","D6 – OTHER","TOTAL (COST COMPONENTS MUST ADD UP TO 100%)","Manufacture name/third party/distributor/redistributor name","COUNTRY OF ORIGIN"]
["Example:\nRT59-001","Footwear","Boots, Leather, Black: SAPS Spec 3183/2017 and Bar Coded Labels Spec SAPS 10/2008 Version 02,0 March 2013","SAPS 3183/17 Version 01,0/January 2017","YES/NO",{"v":1,"d":"100%"},"NO IMPORTS","SOUTH AFRICAN POLICE",0,10000,1500000,"EACH","Transversal (Pty)Ltd ",{"v":10,"d":"R10.00"},10,10,20,40,15,10,15,0,{"$f":"SUM(Q4:V4)","v":100},"Mnumzane Textiles","South Africa"]
["RT59-1-030","Footwear","SHOE, CROSS TRAINING, SPECIFICATION 05181-100-259, Issue 001, December 2022","05181-100-259, Issue 001, December 2022","YES",{"v":1,"d":"100%"},"PU,STC","SOUTH AFRICAN MILITARY HEALTH SERVICE",1000,1000,1000,"PAIRS",{"$nulls":10},0]
["RT59-1-054","Footwear","BOOTS, ALL-WEATHER, MOTORCYCLE UNIT. IN ACCORDNCE TO SPECIFICATION:  JMPD 012, VERSION 01.0/APRIL 2015.COLOR: DARK BROWN. SIZES: ALL. ","JMPD 012, VERSION 01.0/APRIL 2015","NO","IMPORTED","IMPORTED","LIMPOPO DEPARTMENT OF TRANSPORT AND COMMUNITY SAFETY",15,20,20,"PAIR",{"$nulls":10},0]
["RT59-1-061","Footwear","Boots, Tactical, Operational, Safety, Black as per specification FPSGP/BTO001/2014 Version May 2026\n\nNOTE: ALL SAFETY FOOTWEAR IS CLASSIFIED AS PPE HENCE CONFORMITY TO SANS 20345:2023 IS A REQUIREMENT","FPSGP/BTO001/2014 Version May 2026","YES\n1. Carbon/steel toe cap\n2. Anti-penetration steel midsole\n3. Anti-static\n4. Oil & slip resistant ",{"v":1,"d":"100%"},"PU, STC","FORENSIC PATHOLOGY SERVICE, GAUTENG HEALTH",100,300,300,"PAIR",{"$nulls":10},0]
["RT59-1-062","Footwear","Shoes, Safety, Black, as per specification FPSGP/SSFTO001/2016 Version May 2026\n\nNOTE: ALL SAFETY FOOTWEAR IS CLASSIFIED AS PPE HENCE CONFORMITY TO SANS 20345:2023 IS A REQUIREMENT","FPSGP/SSFTO001/2016 Version May 2026","YES\n1. Carbon/steel toe cap\n2. Anti-penetration steel midsole\n3. Anti-static\n4. Oil & slip resistant ",{"v":1,"d":"100%"},"PU, STC","FORENSIC PATHOLOGY SERVICE, GAUTENG HEALTH",100,300,300,"PAIR",{"$nulls":10},0]
["RT59-1-066","Leather Product","KZN LEATHER FIREARM HOLSTER - SPECIFICATION KZNDOT_029/2025_V01, COLOUR: BROWN, FOR PX4 STORM 9MM FIREARM","KZNDOT_029/2025_V01","NO",{"v":1,"d":"100%"},"NO IMPORTS","KWAZULU-NATAL DEPARTMENT OF TRANSPORT",0,300,300,"EACH",{"$nulls":10},0]
["RT59-1-076","Footwear","SHOES, SAFETY STEEL TOE CAP, UNISEX. SPECIFICATION: SANS 20345:2023 CLASSIFICATION I. EDITION 3 ISO 20345:2021 EDITIONS 3 PERSONAL PROTECTIVE EQUIPMENT SAFETY FOOTWEAR. FOUR (4) PAIR EYELETS, PADDED COLLAR, POLYURETHANE MIDSOLE WITH HEAT- AND OIL-RESISTANT RUBBER, OUTER SOLE, SMOOTH GRAIN UPPER LEATHER,  LINED PLAIN VAMP, MILITARY TYPE OUTSIDE COUNTER,  FULL TONGUE.\nCOLOR: BLACK, -OFFENDERS, DARK BROWN  - MEMBERS SIZES: SIZES: UNISEX 4 – 13","SANS 20345:2023 CLASSIFICATION I","YES",{"v":1,"d":"100%"},"PU, STC","DEPARTMENT OF CORRECTIONAL SERVICES",{"v":5000,"d":"5,000"},{"v":5000,"d":"5,000"},{"v":5000,"d":"5,000"},"PAIR",{"$nulls":10},0]
["RT59-1-077","Footwear","BOOT, GUM, PVC, KNEE LENGTH, SAFETY, SPECIFICATION: SANS 20345:2023 CLASSIFICATION II EDITION 3 ISO 20345:2021 EDITIONS 3. PERSONAL PROTECTIVE EQUIPMENT SAFETY FOOTWEAR. SIZES: 3, 4, 5, 6, 7, 8, 9, 10, 11, 12, 13, 14. COLOUR: BLACK","SANS 20345:2023 CLASSIFICATION II EDITION 3 ISO 20345:2011 EDITIONS 3","YES",{"v":1,"d":"100%"},"PU, STC","DEPARTMENT OF CORRECTIONAL SERVICES",{"v":5000,"d":"5,000"},{"v":4000,"d":"4,000"},{"v":4000,"d":"4,000"},"PAIR",{"$nulls":10},0]
["RT59-1-078","Footwear","BOOT, GUM,  PVC, KNEE LENGTH. SPECIFICATION SANS 20345:2023 CLASSIFICATION II: ACID, BLOOD & FAT RESISTANT SHOE, NITRILE SOLE, SABS APPROVED, STEEL TOE CAP WITH 200 JOULES IMPACT RESISTANCE, ULTRA-SAFE OUTBACK  IDENTIFICATION: WHITE PVC SHAFT WITH GREY OR RED SOLE, SIZES: UNISEX 5 TO 12, PACKAGING: BOXED, COLOUR: WHITE WITH GREY OR RED SOLE","SANS 20345:2023 CLASSIFICATION II  EDITION 3 ISO 20345:2021 EDITIONS 3","YES",{"v":1,"d":"100%"},"PU,STC","DEPARTMENT OF CORRECTIONAL SERVICES",{"v":2000,"d":"2,000"},{"v":2000,"d":"2,000"},{"v":2000,"d":"2,000"},"PAIR",{"$nulls":10},0]
["RT59-1-090","Leather Product","GLOVES, MEN LEATHER, WHITE KID, DRESS TYPE, SPECIFICATION SALM 174 VERSION 04.0 / MARCH 2023","SALM 174 VERSION 04.0 / MARCH 2023","NO",{"v":1,"d":"100%"},"NO IMPORTS","SOUTH AFRICAN AIR FORCE",1000,0,1000,"PAIR",{"$nulls":10},0]
["RT59-1-092","Footwear","SAFETY SHOES UNISEX COMPLIES TO SANS 20345:2023 CLASSIFICATION I AND SALM 625 VERSION 03.0/JULY 2022\n\nNOTE: ALL SAFETY FOOTWEAR IS CLASSIFIED AS PPE HENCE CONFORMITY TO SANS 20345:2023 IS A REQUIREMENT","SALM 625 VERSION 03.0/JULY 2022","YES",{"v":1,"d":"100%"},"PU, STC","SOUTH AFRICAN AIR FORCE",1000,1000,1000,"PAIR",{"$nulls":10},0]
["RT59-1-093","Footwear","MEN SERVICE DRESS SHOE, SPECIFICATION: SALM 369 VERSION 03.0 OCTOBER 2011, COLOUR: BLACK","SALM 369 VERSION 03.0 OCTOBER 2011","YES",{"v":1,"d":"100%"},"NO IMPORTS","SOUTH AFRICAN AIR FORCE",1000,1000,1000,"PAIR",{"$nulls":10},0]
["RT59-1-094","Footwear","BOOT: ALL WEATHER MOTORCYCLE : JMPD SPECIFICATION: JMPD 012 VERSION 01.0/APRIL 2015 . COLOUR BLACK, SIZES: ALL SIZES","JMPD 012 V01.0 / APRIL 2015","NO","IMPORTED","IMPORTED","ROAD TRAFFIC MANAGEMENT CORPORATION",0,0,40,"PAIR",{"$nulls":10},0]
["RT59-1-105","Footwear","SHOE, WOMEN, SERVICE DRESS, COURT, SPECIFICATION: 05741-100-251, Issue 001, July 2014","05741-100-251, Issue 001, July 2014","YES",{"v":1,"d":"100%"},"NO IMPORTS","SOUTH AFRICAN ARMY ",20000,20000,20000,"PAIR",{"$nulls":10},0]
["RT59-1-107","Footwear","SHOE, CROSS TRAINING, SPECIFICATION 05181-100-259, Issue 001, December 2022","05181-100-259, Issue 001, December 2022","YES",{"v":1,"d":"100%"},"NO IMPORTS","SOUTH AFRICAN ARMY ",20000,20000,20000,"PAIR",{"$nulls":10},0]
["RT59-1-108","Footwear","SHOE, MENS, SERVICE DRESS SPECIFICATION: 05741-100-241, Issue 001, May 2013","05741-100-241, Issue 001, May 2013","YES",{"v":1,"d":"100%"},"NO IMPORTS","SOUTH AFRICAN ARMY ",20000,20000,20000,"PAIR",{"$nulls":10},0]
["RT59-1-109","Footwear","BOOTS, PARATROOPERS, SPECIFICATION: KMG 6111, REVISION NOVEMBER 1994","KMG 6111, REVISION NOVEMBER 1994","YES",{"v":1,"d":"100%"},"NO IMPORTS","SOUTH AFRICAN ARMY ",10000,10000,10000,"PAIR"]
["RT59-1-110","Footwear","MENS BLACK LEATHER COMBAT BOOTS, GOODYEAR WELTED, SPECIFICATION: GLCO-CCFS-22-009 REVISED VERSION 2","GLCO-CCFS-22-009 REVISED VERSION 2","YES",{"v":1,"d":"100%"},"PU, STC","SOUTH AFRICAN ARMY ",20000,20000,20000,"PAIR",{"$nulls":10},{"$f":"SUM(Q21:V21)","v":0}]
["RT59-1-119","Footwear","SHOE, WOMEN, CEREMONIAL DRESS, SPECIFICATION 05741-100-243, Issue 001, May 2013","05741-100-243, Issue 001, May 2013","YES",{"v":1,"d":"100%"},"NO IMPORTS","SOUTH AFRICAN ARMY ",20000,20000,20000,"PAIR",{"$nulls":10},0]
["RT59-1-120","Footwear","BOOT, GUM, PVC, KNEE LENGTH, GENERAL PURPOSE, SPECIFICATION: SANS 20347:2023 CLASSIFICATION II EDITION 3 ISO 20347:2021 EDITION 3. PERSONAL PROTECTIVE EQUIPMENT SAFETY FOOTWEAR. SIZES: 3, 4, 5, 6, 7, 8, 9, 10, 11, 12, 13, 14. COLOUR: BLACK","SANS 20347:2023 CLASSIFICATION II EDITION 3 ISO 20347:2021 EDITION 3","YES",{"v":1,"d":"100%"},"PU, STC","DEPARTMENT OF CORRECTIONAL SERVICES",5000,4000,4000,"PAIR",{"$nulls":10},0]
["RT59-1-121","Leather Product","KZN LEATHER FIREARM HOLSTER - SPECIFICATION KZNDOT_029/2025_V01, COLOUR: BROWN, FOR PX4 STORM 9MM FIREARM","KZNDOT_029/2025_V01","NO",{"v":1,"d":"100%"},"NO IMPORTS","LIMPOPO DEPARTMENT OF TRANSPORT AND COMMUNITY SAFETY",1000,1200,1200,"EACH",{"$nulls":10},0]
["RT59-1-122","Footwear","SHOE WHITE LEATHER, MALE , GOODYEAR WELTED, UPPER LEATHER, QUARTER LINING CENTRE AND SYNTAN RETANNED LEATHER, QUARTER TOPLINE 4MM FIRM, INSOLE PADDED WITH FIRM COVERED WITH FOUR PART COVER, SEAT SOCK, OUTER SOLES AND HEELS, TOFFEE PVC NITRILE COMPOUND, SPECIFICATION: SALM 369 VERSION 03.0 OCTOBER 2011,COLOUR WHITE WITH TOFFEE COLOUR OUTER SOLE AND HEEL, SIZES:ALL","SALM 369 VERSION 03.0 OCTOBER 2011, WHITE","NO",{"v":1,"d":"100%"},"NO IMPORTS","SOUTH AFRICAN NAVY",750,750,750,"PAIR",{"$nulls":10},0]
["RT59-1-123","Footwear","MENS BLACK LEATHER COMBAT BOOTS, GOODYEAR WELTED, SPECIFICATION: GLCO-CCFS-22-009 REVISED VERSION 2","GLCO-CCFS-22-009 REVISED VERSION 2","YES",{"v":1,"d":"100%"},"PU, STC","SOUTH AFRICAN AIR FORCE",1000,1000,1000,"PAIR",{"$nulls":10},0]

{"sheet":"Abbreviations","index":2,"n_rows":9,"n_cols":1,"rows_kept":9}
["The abbreviations on Column G are as follows:"]
[]
["1. PU – polyurethane chemical"]
["2. STC – Steel toe caps"]
["3. SMS – Steel midsoles"]
["4. MS – Midsoles"]
["5. ROS – Rubber outer sole"]
["6. PU/ROS - Polyurethane rubber outer sole"]
["7. No imports  - nothing is imported "]